bitfinex-derivatives/quotes_SOLF0:USTF0_20241008
["timestamp","ask_amount","ask_price","bid_price","bid_amount"]
[1728418551997,1.4261,144.14,144.11,10.78502]
[1728418552198,1.4261,144.14,144.13,3.4706]
[1728418553205,4.8965,144.14,144.12,3.4707]
[1728418554101,4.8604,144.15,144.13,3.4706]
[1728418555598,1.3902,144.15,144.11,10.78502]
[1728418555803,3.4704,144.14,144.12,3.4707]
[1728418557506,10.66,144.13,144.11,0.12502]
[1728418557709,10.66,144.12,144.11,0.12502]
[1728418557905,3.4717,144.09,144.07,95.40389154]
[1728418558110,10.66,144.09,144.07,91.93199154]
[1728418558508,3.4718,144.08,144.07,91.93199154]
[1728418559320,3.4723,144.06,144.05,0.12502]
[1728418560713,10.66,144.08,144.05,0.12502]
[1728418560910,3.4721,144.07,144.05,3.59752]
[1728418561116,10.66,144.08,144.05,3.59752]
[1728418561412,1.419,144.12,144.06,10.66]
[1728418561617,17.239,144.12,144.07,10.66]
[1728418561814,20.71,144.12,144.09,3.4714]
[1728418562623,3.4711,144.11,144.09,3.4714]
[1728418563419,20.7099,144.12,144.09,3.4714]
[1728418564625,5.16,144.12,144.1,10.66]
[1728418564929,18.5656,144.15,144.1,10.66]
[1728418565728,10.66,144.12,144.08,3.4716]
[1728418565919,10.66,144.12,144.07,10.66]
[1728418566228,14.1306,144.13,144.09,3.4715]
[1728418566425,10.66,144.13,144.09,3.4715]
[1728418566617,10.66,144.12,144.06,15.82]
[1728418566822,1.3205,144.11,144.06,15.82]
[1728418567225,10.66,144.1,144.06,15.82]
[1728418567430,3.4717,144.09,144.06,5.16]
[1728418567932,3.4717,144.09,144.07,3.4719]
[1728418568732,14.1314,144.1,144.08,3.4717]
[1728418570333,1.3205,144.11,144.1,3.4713]
[1728418570533,10.66,144.14,144.1,10.66]
[1728418570925,14.1305,144.14,144.12,3.4707]
[1728418571235,14.1305,144.14,144.05,0.12502]
[1728418571236,3.4705,144.14,144.11,10.66]
[1728418571735,10.66,144.14,144.09,15.82]
[1728418571937,3.4708,144.13,144.1,3.4712]
[1728418572936,10.66,144.14,144.1,3.4712]
[1728418573132,3.471,144.12,144.1,3.4712]
[1728418574441,3.4707,144.13,144.11,3.471]
[1728418578239,2.7456,144.15,144.09,5.16]
[1728418578440,3.4705,144.14,144.12,3.4707]
[1728418579145,4.95433619,144.16,144.09,21.83]
[1728418579546,4.95433619,144.16,144.09,5.16]
[1728418579942,3.4709,144.12,144.1,3.4712]
[1728418580344,3.4709,144.12,144.08,5.16]
[1728418580651,3.4709,144.12,144.09,3.4714]
[1728418581650,3.4709,144.12,144.1,3.4713]
[1728418584947,1.4215,144.15,144.08,5.16]
[1728418585155,3.4707,144.13,144.11,3.4711]
[1728418588047,3.471,144.12,144.1,3.4713]
[1728418588452,1.4215,144.15,144.08,5.16]
[1728418589552,3.4708,144.13,144.1,3.4711]
[1728418590952,3.4709,144.12,144.1,3.4711]
[1728418592752,2.7462,144.15,144.08,5.16]
[1728418593056,3.4707,144.13,144.11,3.4711]
[1728418597751,3.4708,144.12,144.1,3.4712]
[1728418597956,14.1408,144.12,144.1,3.4712]
[1728418599360,3.4715,144.1,144.08,3.4717]
[1728418599763,10.67,144.11,144.06,5.16]
[1728418600162,3.4714,144.1,144.08,3.4718]
[1728418604562,2.7462,144.15,144.08,10.67]
[1728418604765,10.67,144.13,144.08,10.67]
[1728418605266,3.4708,144.12,144.1,3.4712]
[1728418605454,10.67,144.13,144.08,10.67]
[1728418606568,14.1408,144.13,144.1,3.4712]
[1728418607272,10.67,144.13,144.09,10.67]
[1728418608466,14.1407,144.13,144.11,3.4711]
[1728418610069,10.67,144.13,144.11,3.4711]
[1728418610266,1.4215,144.15,144.12,10.67]
[1728418610464,15.95502,144.17,144.12,10.67]
[1728418610857,3.47,144.16,144.13,3.4705]
[1728418611061,3.47,144.16,144.12,10.67]
[1728418611463,3.47,144.16,144.13,3.4706]
[1728418611861,14.14,144.16,144.13,3.4706]
[1728418612863,10.67,144.16,144.13,3.4706]
[1728418613060,14.1402,144.15,144.1,15.83]
[1728418613266,14.1402,144.15,144.12,3.4707]
[1728418615174,3.4705,144.14,144.11,3.4709]
[1728418615376,10.67,144.13,144.11,3.4709]
[1728418615673,10.67,144.13,144.1,5.16]
[1728418615873,10.67,144.13,144.12,3.4708]
[1728418616078,14.1405,144.14,144.12,3.4708]
[1728418617070,14.1405,144.14,144.09,10.67]
[1728418617373,14.1405,144.14,144.11,3.471]
[1728418619377,10.67,144.12,144.09,3.4713]
[1728418619565,10.67,144.1,144.05,0.12502]
[1728418619771,10.67,144.08,144.05,0.12502]
[1728418620872,10.67,144.08,144.06,3.4723]
[1728418621075,10.67,144.08,144.05,0.12502]
[1728418621576,14.1417,144.09,144.07,3.4719]
[1728418623179,15.83,144.08,144.05,0.12502]
[1728418623379,10.67,144.06,144.05,0.12502]
[1728418623978,14.1423,144.06,144.05,0.12502]
[1728418624279,10.67,144.06,144.05,0.12502]
[1728418626382,14.1423,144.06,144.05,0.12502]
[1728418627182,14.1423,144.06,144.05,200.12502]
[1728418628684,14.1423,144.06,144.05,197.96392]
[1728418628886,14.1423,144.06,144.05,113.98292]
[1728418629386,15.5739,144.06,144.05,113.98292]
[1728418629775,4.9039,144.06,144.05,113.98292]
[1728418629980,15.5739,144.06,144.05,113.98292]
[1728418631581,12.1016,144.06,143.99,0.12502]
[1728418631781,14.1437,144.0,143.99,0.12502]
[1728418638488,14.1437,144.0,143.93,4.28542]
[1728418638489,10.67,144.0,143.93,4.28542]
[1728418638791,10.67,143.94,143.93,0.12502]
[1728418638995,14.1452,143.94,143.93,0.12502]
[1728418644496,10.67,143.96,143.93,0.12502]
[1728418644796,15.83,143.96,143.93,0.12502]
[1728418645797,19.3048,143.96,143.93,3.60022]
[1728418646297,15.83,143.96,143.93,0.12502]
[1728418646596,19.3047,143.96,143.93,0.12502]
[1728418647198,19.3047,143.96,143.93,3.60042]
[1728418647497,10.67,143.96,143.93,0.12502]
[1728418647689,5.16,143.96,143.93,0.12502]
[1728418648394,5.16,143.96,143.95,3.4749]
[1728418649807,19.3045,143.97,143.95,3.4749]
[1728418651389,19.3045,143.97,143.93,0.12502]
[1728418651596,10.67,143.96,143.94,3.4751]
[1728418651785,10.67,143.95,143.93,0.12502]
[1728418651986,5.16,143.94,143.93,0.12502]
[1728418652593,8.6352,143.94,143.93,0.12502]
[1728418655298,19.3052,143.94,143.93,0.12502]
[1728418655698,3.4762,143.9,143.88,3.4764]
[1728418655901,10.67,143.89,143.88,3.4764]
[1728418660805,5.16,143.91,143.89,3.4762]
[1728418661901,19.306,143.91,143.89,3.4762]
[1728418663508,15.83,143.91,143.87,1.53992]
[1728418663707,5.16,143.91,143.9,3.4761]
[1728418664010,8.34244219,143.93,143.87,12.20992]
[1728418664011,8.68594219,143.93,143.88,10.67]
[1728418664204,3.52594219,143.93,143.92,3.4757]
[1728418664409,5.16,143.94,143.9,10.67]
[1728418665002,10.67,143.94,143.92,3.4755]
[1728418666812,10.67,143.94,143.93,3.4754]
[1728418667313,15.83,143.95,143.94,3.4751]
[1728418669211,15.83,143.95,143.93,3.4753]
[1728418669717,15.83,143.95,143.9,10.67]
[1728418670608,15.83,143.95,143.94,3.4752]
[1728418670812,5.16,143.95,143.94,3.4752]
[1728418672519,15.83,143.95,143.94,3.4752]
[1728418672815,15.83,143.95,143.93,3.4753]
[1728418673012,10.67,143.95,143.93,3.4753]
[1728418673914,0.12502,143.99,143.89,5.16]
[1728418674116,10.67,143.98,143.93,10.67]
[1728418674917,10.67,143.98,143.96,3.4745]
[1728418675513,10.67,143.98,143.97,3.4745]
[1728418676921,10.79502,143.99,143.98,3.4742]
[1728418678312,0.12502,143.99,143.98,3.4742]
[1728418683020,0.12502,144.05,143.98,10.67]
[1728418683226,15.81,144.04,143.98,10.67]
[1728418683521,10.67,144.04,144.0,3.4736]
[1728418683723,10.67,144.04,143.99,10.67]
[1728418684429,10.67,144.04,144.02,3.4731]
[1728418685134,10.67,144.04,143.99,10.67]
[1728418685322,3.59762,144.05,143.98,5.14]
[1728418685323,10.79502,144.05,144.0,10.67]
[1728418685826,10.79502,144.05,144.04,3.4728]
[1728418692640,0.12502,144.05,144.04,3.4728]
[1728418696843,10.79502,144.05,144.04,3.4728]
[1728418698443,10.79502,144.05,144.0,10.67]
[1728418698444,15.93502,144.05,144.0,3.4736]
[1728418698748,10.67,144.01,144.0,3.4736]
[1728418699748,10.67,144.01,143.99,3.4739]
[1728418700138,10.67,144.01,143.97,1.3141]
[1728418701050,10.67,144.01,143.97,11.9841]
[1728418701446,14.1433,144.02,144.0,3.4735]
[1728418706642,10.67,144.01,143.99,3.4738]
[1728418706847,10.67,144.01,143.97,1.3141]
[1728418707556,3.4738,144.0,143.98,3.4741]
[1728418707744,10.67,143.99,143.98,3.4741]
[1728418708056,3.4745,143.97,143.95,3.4748]
[1728418708254,10.67,143.96,143.87,0.12502]
[1728418708449,10.67,143.89,143.87,0.12502]
[1728418708753,10.67,143.88,143.87,0.12502]
[1728418709157,16.15,143.88,143.87,0.12502]
[1728418709363,10.67,143.88,143.87,0.12502]
[1728418709548,16.15,143.88,143.87,0.12502]
[1728418709748,10.67,143.88,143.87,0.12502]
[1728418710056,16.15,143.88,143.87,0.12502]
[1728418710446,22.17,143.88,143.87,0.12502]
[1728418712963,5.48,143.88,143.87,0.12502]
[1728418713158,3.54735268,143.9,143.87,0.12502]
[1728418713462,5.48,143.89,143.87,0.12502]
[1728418713858,20.1661,143.91,143.87,3.60172]
[1728418714158,5.48,143.9,143.87,3.60172]
[1728418714361,20.1661,143.91,143.87,3.60172]
[1728418714559,5.48,143.9,143.87,3.60172]
[1728418715757,5.48,143.9,143.88,3.4766]
[1728418716963,20.11529394,143.91,143.87,0.12502]
[1728418717158,3.42529394,143.91,143.89,3.4763]
[1728418717363,5.48,143.9,143.89,3.4763]
[1728418718369,5.48,143.9,143.88,3.4766]
[1728418720670,16.69,143.93,143.87,0.12502]
[1728418720854,8.9557,143.92,143.89,3.4762]
[1728418723574,3.4766,143.88,143.87,0.12502]
[1728418723870,5.48,143.88,143.87,0.12502]
[1728418724972,16.69,143.91,143.87,0.12502]
[1728418725172,5.48,143.9,143.88,3.4766]
[1728418725766,3.4761,143.91,143.88,3.4766]
[1728418725967,5.48,143.9,143.88,3.4766]
[1728418729369,5.48,143.89,143.88,3.4766]
[1728418740982,8.9565,143.89,143.87,3.60182]
[1728418742279,5.48,143.89,143.88,3.4766]
[1728418742482,14.1581911,143.92,143.87,0.12502]
[1728418742685,5.34,143.89,143.87,0.12502]
[1728418743291,5.34,143.9,143.89,3.4763]
[1728418750688,14.1459,143.91,143.89,3.4763]
[1728418750888,5.34,143.9,143.89,3.4763]
[1728418755296,3.42920314,143.92,143.87,0.12502]
[1728418755595,16.01,143.95,143.9,10.67]
[1728418755800,10.67,143.94,143.88,12.0152]
[1728418755993,14.1458,143.92,143.88,1.3452]
[1728418756497,14.1456,143.93,143.91,3.4759]
[1728418759098,10.67,143.93,143.91,3.4759]
[1728418759697,14.1455,143.93,143.91,3.4759]
[1728418763303,16.01,143.95,143.94,3.4752]
[1728418763502,16.01,143.95,143.91,10.67]
[1728418763703,10.67,143.94,143.89,10.67]
[1728418764101,14.1453,143.94,143.91,3.4757]
[1728418764603,10.67,143.94,143.89,10.67]
[1728418765404,10.67,143.94,143.93,3.4754]
[1728418766709,16.01,143.95,143.94,3.4752]
[1728418767408,19.485,143.95,143.93,3.4753]
[1728418767608,16.01,143.95,143.9,10.67]
[1728418768009,19.4849,143.95,143.93,3.4753]
[1728418770413,16.01,143.95,143.93,3.4753]
[1728418773415,19.485,143.95,143.93,3.4753]
[1728418778506,16.01,143.95,143.9,10.67]
[1728418778707,16.01,143.95,143.94,3.4752]
[1728418784024,5.34,143.95,143.94,3.4752]
[1728418784223,3.44736658,143.97,143.93,10.67]
[1728418784411,5.22,143.97,143.93,10.67]
[1728418784616,14.1443,143.98,143.93,10.67]
[1728418784821,19.3643,143.98,143.93,10.67]
[1728418785017,14.1443,143.98,143.93,10.67]
[1728418785218,19.3643,143.98,143.93,10.67]
[1728418786423,19.3643,143.98,143.95,3.4748]
[1728418787923,19.3643,143.98,143.93,10.67]
[1728418787924,19.3643,143.98,143.96,3.4747]
[1728418791830,8.6943,143.98,143.96,3.4747]
[1728418792133,15.89,143.98,143.97,3.4745]
[1728418793136,5.22,143.98,143.97,3.4745]
[1728418796332,15.89,143.98,143.93,1.3464]
[1728418796532,3.4745,143.97,143.95,3.4748]
[1728418796937,15.89,143.98,143.95,3.4748]
[1728418797137,19.3643,143.98,143.95,3.4748]
[1728418797538,19.3643,143.98,143.96,3.4747]
[1728418799439,5.22,143.98,143.96,3.4747]
[1728418799942,5.22,143.98,143.97,3.4745]
[1728418800141,5.22,143.98,143.94,10.67]
[1728418801039,8.6943,143.98,143.96,3.4746]
[1728418806950,5.22,143.98,143.93,1.3464]
[1728418807152,3.4745,143.97,143.95,3.4748]
[1728418807443,5.22,143.98,143.95,3.4748]
[1728418808044,5.22,143.98,143.9,10.67]
[1728418808045,10.67,143.96,143.9,10.67]
[1728418808247,14.1453,143.94,143.89,10.67]
[1728418808547,14.1453,143.94,143.92,3.4756]
[1728418812045,14.1448,143.96,143.92,10.67]
[1728418812241,10.79502,143.99,143.94,10.67]
[1728418812440,5.16,143.98,143.94,10.67]
[1728418812748,8.6343,143.98,143.96,3.4747]
[1728418815552,10.67,143.97,143.95,3.4748]
[1728418815853,3.475,143.95,143.91,10.67]
[1728418816350,3.475,143.95,143.88,8.57702556]
[1728418816351,19.305,143.95,143.92,3.4756]
[1728418816548,14.1453,143.94,143.92,3.4756]
[1728418818648,3.4753,143.94,143.92,3.4756]
[1728418818859,19.3051,143.95,143.93,3.4753]
[1728418821051,5.16,143.95,143.93,3.4753]
[1728418822148,5.16,143.95,143.91,10.67]
[1728418822355,5.16,143.95,143.94,3.4752]
[1728418825460,5.16,143.95,143.91,10.67]
[1728418825663,5.16,143.95,143.93,3.4753]
[1728418832469,8.635,143.95,143.93,3.4753]
[1728418835572,0.12502,143.99,143.92,10.67]
[1728418835769,3.4746,143.97,143.95,3.4748]
[1728418837878,8.6344,143.98,143.96,3.4746]
[1728418839080,0.12502,143.99,143.96,3.4746]
[1728418839285,0.12502,143.99,143.94,10.67]
[1728418839286,19.40912,143.99,143.97,3.4744]
[1728418850794,10.67,143.98,143.97,3.4744]
[1728418853995,10.67,143.98,143.91,2.82]
[1728418854299,10.67,143.95,143.91,2.82]
[1728418854489,10.67,143.95,143.91,13.49]
[1728418854892,10.67,143.95,143.94,3.4751]
[1728418855094,10.67,143.97,143.92,10.67]
[1728418855610,14.1446,143.97,143.95,3.4749]
[1728418860405,3.4746,143.97,143.95,3.4749]
[1728418860600,19.40912,143.99,143.97,3.4745]
[1728418861604,14.26912,143.99,143.97,3.4745]
[1728418861805,19.40912,143.99,143.97,3.4745]
[1728418867932,0.12502,143.99,143.98,3.4742]
[1728418869241,0.12502,143.99,143.98,14.1442]
[1728418870326,19.2834,144.02,144.0,3.4736]
[1728418870627,14.1434,144.02,144.0,3.4736]
[1728418870828,5.14,144.03,144.0,10.67]
[1728418871029,0.12502,144.05,144.02,10.67]
[1728418871733,0.12502,144.05,144.04,3.4728]
[1728418873230,35.75641512,144.08,144.04,10.67]
[1728418873428,35.75641512,144.08,144.06,3.4721]
[1728418873927,30.61641512,144.08,144.06,3.4721]
[1728418874829,41.28641512,144.08,144.06,3.4721]
[1728418875219,14.1422,144.07,144.04,3.4727]
[1728418875425,14.1422,144.07,144.01,10.67]
[1728418876523,14.1422,144.07,144.0,3.48824286]
[1728418876524,14.1422,144.07,144.0,8.62824286]
[1728418876724,14.1422,144.07,144.02,10.67]
[1728418877127,14.1422,144.07,144.04,3.4726]
[1728418878127,3.4722,144.07,144.04,3.4726]
[1728418878537,3.4722,144.07,144.05,3.4724]
[1728418887546,15.81,144.06,143.99,2.82832]
[1728418887746,10.67,144.01,143.99,1.45702]
[1728418887943,10.67,144.03,143.99,1.45702]
[1728418888144,15.81,144.03,143.99,1.45702]
[1728418888444,19.2831,144.03,144.01,3.4734]
[1728418890140,5.14,144.03,144.02,3.4733]
[1728418891052,14.1428,144.04,144.02,3.4733]
[1728418892748,10.67,144.04,143.99,12.12702]
[1728418892950,10.67,144.04,144.02,3.4731]
[1728418894451,14.1428,144.04,144.02,3.4731]
[1728418897257,5.14,144.06,144.05,3.4725]
[1728418897555,5.14,144.06,144.03,10.67]
[1728418897556,15.81,144.08,144.03,10.67]
[1728418897960,10.67,144.07,144.03,10.67]
[1728418898442,14.1421,144.07,144.05,3.4724]
[1728418898643,3.4721,144.07,144.05,3.4724]
[1728418898947,14.1421,144.07,144.05,3.4724]
[1728418900359,10.67,144.07,144.05,3.4724]
[1728418900558,5.14,144.08,144.06,3.4721]
[1728418909456,15.81,144.08,144.06,3.4721]
[1728418909656,19.2818,144.08,144.06,3.4721]
[1728418912165,3.4721,144.07,144.05,3.4724]
[1728418912662,10.67,144.06,144.0,13.5357]
[1728418912859,3.4727,144.05,144.0,13.5357]
[1728418913469,3.4727,144.05,144.03,3.4729]
[1728418913665,10.67,144.06,144.0,13.5357]
[1728418913871,10.67,144.06,144.0,12.1098]
[1728418914568,3.4727,144.05,144.03,3.4729]
[1728418917572,3.4731,144.03,144.01,3.4734]
[1728418917772,10.67,144.02,143.99,1.45702]
[1728418918369,14.1434,144.02,143.99,0.12502]
[1728418918776,14.1434,144.02,144.0,3.4737]
[1728418920671,8.6129,144.04,144.01,3.4733]
[1728418920875,10.67,144.03,143.99,0.12502]
[1728418921975,5.14,144.04,144.02,3.4731]
[1728418922179,5.14,144.04,144.0,10.67]
[1728418922582,19.2827,144.05,144.02,3.473]
[1728418923883,3.4728,144.04,144.02,3.473]
[1728418925387,10.67,144.03,144.02,3.473]
[1728418926586,10.67,144.03,144.01,3.4734]
[1728418926980,14.143,144.03,144.01,3.4734]
[1728418927286,10.67,144.02,144.0,3.4736]
[1728418927481,10.67,144.01,143.99,0.12502]
[1728418927682,14.1435,144.01,143.99,0.12502]
[1728418927882,14.1435,144.01,143.99,3.59882]
[1728418930781,10.67,144.03,143.99,10.79502]
[1728418931878,14.1431,144.03,144.01,3.4735]
[1728418933992,14.1426,144.05,144.03,3.4729]
[1728418934193,19.2826,144.05,144.03,3.4729]
[1728418938197,19.2826,144.05,144.0,10.67]
[1728418938398,19.2826,144.05,144.02,3.4732]
[1728418938597,3.4728,144.04,144.02,3.4732]
[1728418939099,10.67,144.03,144.0,3.4737]
[1728418939292,10.67,144.01,143.99,0.12502]
[1728418940397,14.1435,144.01,143.99,3.59892]
[1728418941696,3.4737,144.0,143.99,0.12502]
[1728418942696,14.1437,144.0,143.99,0.12502]
[1728418948794,3.4747,143.96,143.93,92.14509984]
[1728418949096,14.1447,143.96,143.93,92.14509984]
[1728418949483,10.67,143.94,143.93,92.14509984]
[1728418949993,3.4763,143.9,143.87,0.12502]
[1728418950188,10.67,143.89,143.87,0.12502]
[1728418950499,355.98502,143.99,143.87,0.12502]
[1728418950500,10.67,143.9,143.87,0.12502]
[1728418950797,15.81,143.9,143.87,0.12502]
[1728418950989,15.81,143.9,143.88,3.4766]
[1728418951187,10.67,143.89,143.87,0.12502]
[1728418951402,10.67,143.89,143.87,3.60172]
[1728418955806,5.14,143.9,143.87,0.12502]
[1728418956394,15.81,143.9,143.87,0.12502]
[1728418957196,5.14,143.9,143.88,3.4765]
[1728418957402,15.81,143.9,143.88,3.4765]
[1728418957602,15.81,143.9,143.87,0.12502]
[1728418958007,15.81,143.9,143.89,3.4764]
[1728418958610,15.81,143.9,143.88,3.4765]
[1728418959109,10.67,143.89,143.88,3.4765]
[1728418960707,19.2862,143.9,143.88,3.4765]
[1728418961312,5.14,143.9,143.87,0.12502]
[1728418961506,5.14,143.9,143.89,3.4764]
[1728418961702,15.81,143.9,143.89,3.4764]
[1728418962206,10.67,143.9,143.89,3.4764]
[1728418963914,10.67,143.92,143.87,10.79502]
[1728418964429,10.67,143.92,143.91,3.4758]
[1728418968511,15.81,143.94,143.92,3.4755]
[1728418968719,15.81,143.94,143.89,10.67]
[1728418969117,15.81,143.94,143.89,11.9789]
[1728418970421,15.81,143.94,143.92,3.4754]
[1728418973524,19.2852,143.94,143.92,3.4754]
[1728418974622,15.81,143.94,143.92,3.4754]
[1728418974821,10.67,143.93,143.92,3.4754]
[1728418981020,5.12,143.97,143.92,10.67]
[1728418981221,10.67,143.96,143.92,10.67]
[1728418981828,10.67,143.96,143.94,3.475]
[1728418987831,10.67,143.95,143.94,3.475]
[1728418989434,14.1451,143.95,143.89,14.8145]
[1728418989635,10.67,143.93,143.89,14.8145]
[1728418990136,10.67,143.93,143.92,3.4755]
[1728418991040,14.18557627,143.93,143.87,0.12502]
[1728418991226,10.67,143.91,143.87,0.12502]
[1728418991642,10.67,143.91,143.89,3.4762]
[1728418991936,10.67,143.91,143.87,0.12502]
[1728418993226,14.146,143.91,143.89,3.4762]
[1728418994941,10.67,143.92,143.87,10.79502]
[1728418995135,1.3803,143.96,143.89,10.67]
[1728418995335,1.3803,143.96,143.9,10.67]
[1728418995336,15.79,143.95,143.9,10.67]
[1728418995742,19.265,143.95,143.93,3.4753]
[1728418996339,3.4754,143.93,143.89,3.4762]
[1728418996539,14.17230364,143.93,143.88,18.5365]
[1728418997438,17.64780364,143.93,143.91,3.4758]
[1728418997751,10.67,143.94,143.89,10.67]
[1728418998437,14.1453,143.94,143.92,3.4757]
[1728418999446,5.12,143.95,143.94,3.4752]
[1728418999647,15.79,143.95,143.91,10.67]
[1728419000137,14.1453,143.94,143.92,3.4755]
[1728419000348,3.39373436,143.93,143.89,10.67]
[1728419001256,3.39373436,143.93,143.91,3.4757]
[1728419001454,10.67,143.92,143.88,15.79]
[1728419001938,14.1401933,143.92,143.88,10.67]
[1728419002140,17.6158933,143.92,143.9,3.476]
[1728419002537,14.1457,143.92,143.9,3.476]
[1728419002732,17.69061454,143.92,143.9,3.476]
[1728419002937,14.1457,143.92,143.9,3.476]
[1728419003442,17.66617939,143.92,143.9,3.476]
[1728419004845,14.1457,143.92,143.9,3.476]
[1728419005049,10.67,143.92,143.91,3.4759]
[1728419010651,10.67,143.92,143.87,0.12502]
[1728419010852,14.146,143.91,143.89,3.4762]
[1728419012755,10.67,143.91,143.9,3.4761]
[1728419013046,19.2658,143.92,143.9,3.4761]
[1728419013651,15.79,143.92,143.87,10.79502]
[1728419014453,19.2657,143.92,143.87,10.79502]
[1728419015040,19.2657,143.92,143.9,3.476]
[1728419017551,5.12,143.92,143.91,3.4759]
[1728419018847,3.55036698,143.93,143.92,3.4757]
[1728419019039,5.12,143.95,143.91,10.67]
[1728419019943,5.12,143.95,143.92,3.4756]
[1728419020152,5.12,143.95,143.91,10.67]
[1728419021551,12.0503,143.96,143.91,10.67]
[1728419022145,10.67,143.96,143.95,3.4749]
[1728419023448,14.1447,143.97,143.95,3.4749]
[1728419023650,19.2647,143.97,143.95,3.4749]
[1728419023948,10.67,143.97,143.96,3.4747]
[1728419024546,5.24502,143.99,143.95,10.67]
[1728419025246,5.24502,143.99,143.98,3.4742]
[1728419025646,15.91502,143.99,143.98,3.4742]
[1728419025844,5.24502,143.99,143.98,3.4742]
[1728419026053,15.91502,143.99,143.98,3.4742]
[1728419026251,0.12502,143.99,143.98,3.4742]
[1728419027157,10.79502,143.99,143.98,3.4742]
[1728419027656,10.79502,143.99,143.94,15.79]
[1728419027856,10.79502,143.99,143.97,3.4743]
[1728419028153,10.79502,143.99,143.94,15.79]
[1728419028352,10.79502,143.99,143.96,10.67]
[1728419029552,10.79502,143.99,143.98,3.4742]
[1728419033361,0.12502,143.99,143.98,3.4742]
[1728419038958,10.79502,143.99,143.98,3.4742]
[1728419039161,10.79502,143.99,143.94,6.4188]
[1728419039369,10.79502,143.99,143.94,17.0888]
[1728419039762,10.79502,143.99,143.97,3.4742]
[1728419040468,10.79502,143.99,143.98,3.4742]
[1728419041566,0.12502,143.99,143.98,3.4742]
[1728419041971,0.12502,143.99,143.98,14.1442]
[1728419043060,5.12,144.04,144.03,3.4729]
[1728419043257,5.12,144.04,144.01,10.67]
[1728419043461,5.12,144.04,143.99,10.67]
[1728419043462,15.79,144.04,143.99,10.67]
[1728419043664,19.2629,144.04,144.01,3.4733]
[1728419044460,14.143,144.03,144.01,3.4733]
[1728419056378,15.91502,144.05,144.0,10.67]
[1728419056573,5.24502,144.05,144.0,10.67]
[1728419057381,8.71762,144.05,144.03,3.4729]
[1728419058674,3.4728,144.04,144.02,3.4732]
[1728419058972,10.67,144.03,143.99,1.3183]
[1728419059171,10.67,144.02,143.99,1.3183]
[1728419059373,10.67,144.02,144.01,3.4735]
[1728419061382,14.1431,144.03,144.01,3.4735]
[1728419068287,5.24502,144.05,143.82,21.16336931]
[1728419068288,15.79,144.02,143.92,97.14340163]
[1728419068486,15.79,144.02,143.93,12.09422]
[1728419068487,10.67,144.0,143.93,12.09422]
[1728419068692,3.52741192,143.99,143.93,12.09422]
[1728419068896,7.00151192,143.99,143.97,3.4744]
[1728419069701,10.67,144.01,143.99,3.4738]
[1728419069886,3.50171255,144.01,143.99,3.4738]